[Event "Late-Titled-Tuesday-Blitz-July-09-2024"]
[Site "Chess.com"]
[Date "2024.07.09"]
[Round "1"]
[White "toninhojit"]
[Black "rpragchess"]
[Result "0-1"]
[WhiteElo "2514"]
[BlackElo "3108"]
[TimeControl "180+1"]
[EndTime "14:07:00 PDT"]
[Termination "rpragchess won by resignation"]

1. d4 {[%clk 0:02:58.8]} 1... Nf6 {[%clk 0:02:59.7]} 2. c4 {[%clk 0:02:56.8]}
2... Nc6 {[%clk 0:02:59.6]} 3. d5 {[%clk 0:02:55.9]} 3... Ne5 {[%clk 0:02:59.1]}
4. e3 {[%clk 0:02:54.7]} 4... e6 {[%clk 0:02:58.6]} 5. a3 {[%clk 0:02:52.4]}
5... a5 {[%clk 0:02:50.1]} 6. Nc3 {[%clk 0:02:51.2]} 6... Bc5 {[%clk 0:02:49.8]}
7. Be2 {[%clk 0:02:47.5]} 7... O-O {[%clk 0:02:49]} 8. Nf3 {[%clk 0:02:47.9]}
8... Ng6 {[%clk 0:02:47.7]} 9. O-O {[%clk 0:02:48.1]} 9... e5 {[%clk 0:02:47.4]}
10. Rb1 {[%clk 0:02:42.6]} 10... d6 {[%clk 0:02:46.9]} 11. b4 {[%clk 0:02:42.3]}
11... axb4 {[%clk 0:02:39.1]} 12. axb4 {[%clk 0:02:43.2]} 12... Bb6 {[%clk
0:02:39.8]} 13. Qc2 {[%clk 0:02:35]} 13... Re8 {[%clk 0:02:34]} 14. e4 {[%clk
0:02:24.2]} 14... h6 {[%clk 0:02:24.1]} 15. Be3 {[%clk 0:02:22.4]} 15... Bxe3
{[%clk 0:02:23]} 16. fxe3 {[%clk 0:02:23.3]} 16... Bd7 {[%clk 0:02:22.1]} 17.
Nd2 {[%clk 0:02:16.3]} 17... Qe7 {[%clk 0:01:53.4]} 18. Rf2 {[%clk 0:02:09.7]}
18... Rf8 {[%clk 0:01:51.3]} 19. Rbf1 {[%clk 0:02:09.6]} 19... Nh7 {[%clk
0:01:48.8]} 20. Bh5 {[%clk 0:01:58]} 20... Qg5 {[%clk 0:01:41.5]} 21. Bxg6
{[%clk 0:01:53.7]} 21... Qxg6 {[%clk 0:01:41.8]} 22. c5 {[%clk 0:01:41.4]} 22...
Ng5 {[%clk 0:01:40.5]} 23. Kh1 {[%clk 0:01:41.2]} 23... Ra3 {[%clk 0:01:37.3]}
24. Ndb1 {[%clk 0:01:06.1]} 24... Ra1 {[%clk 0:01:27.4]} 25. Qb2 {[%clk
0:00:56.2]} 25... Rfa8 {[%clk 0:01:25.7]} 26. Nd2 {[%clk 0:00:56.7]} 26... R1a3
{[%clk 0:01:21.5]} 27. Ndb1 {[%clk 0:00:55.7]} 27... Ra1 {[%clk 0:00:44.4]} 28.
Nd2 {[%clk 0:00:50.7]} 28... Rxf1+ {[%clk 0:00:44.4]} 29. Rxf1 {[%clk
0:00:51.6]} 29... f5 {[%clk 0:00:44.8]} 30. exf5 {[%clk 0:00:33.1]} 30... Bxf5
{[%clk 0:00:45.7]} 31. Nc4 {[%clk 0:00:29.7]} 31... Bd3 {[%clk 0:00:43.9]} 32.
Nd2 {[%clk 0:00:19.8]} 32... Bxf1 {[%clk 0:00:43.4]} 33. Nxf1 {[%clk 0:00:20.7]}
33... Qd3 {[%clk 0:00:43.5]} 34. Qc1 {[%clk 0:00:17.1]} 34... Rf8 {[%clk
0:00:40.7]} 35. Ng3 {[%clk 0:00:17]} 35... Qc4 {[%clk 0:00:30.3]} 36. cxd6
{[%clk 0:00:16.5]} 36... cxd6 {[%clk 0:00:30.4]} 37. h3 {[%clk 0:00:16.9]} 37...
Rc8 {[%clk 0:00:28.7]} 38. h4 {[%clk 0:00:11.7]} 38... Qxh4+ {[%clk 0:00:27.7]}
0-1

[Event "Late-Titled-Tuesday-Blitz-July-09-2024"]
[Site "Chess.com"]
[Date "2024.07.09"]
[Round "1"]
[White "Fjal"]
[Black "hakanazeri2"]
[Result "1-0"]
[WhiteElo "2388"]
[BlackElo "2672"]
[TimeControl "180+1"]
[EndTime "14:07:00 PDT"]
[Termination "Fjal won by checkmate"]

1. Nf3 {[%clk 0:02:56]} 1... d5 {[%clk 0:02:58.9]} 2. g3 {[%clk 0:02:56.4]} 2...
Nf6 {[%clk 0:02:55.9]} 3. Bg2 {[%clk 0:02:56.9]} 3... e6 {[%clk 0:02:56.8]} 4.
O-O {[%clk 0:02:57.2]} 4... Be7 {[%clk 0:02:57.7]} 5. d3 {[%clk 0:02:58]} 5...
O-O {[%clk 0:02:58.4]} 6. Nbd2 {[%clk 0:02:58.7]} 6... c5 {[%clk 0:02:58.2]} 7.
e4 {[%clk 0:02:59.2]} 7... h6 {[%clk 0:02:58.8]} 8. e5 {[%clk 0:02:59.1]} 8...
Nfd7 {[%clk 0:02:55.5]} 9. Re1 {[%clk 0:03:00]} 9... Nc6 {[%clk 0:02:55.4]} 10.
Nf1 {[%clk 0:02:59]} 10... b5 {[%clk 0:02:51.2]} 11. h4 {[%clk 0:02:58.6]} 11...
b4 {[%clk 0:02:41.4]} 12. Bf4 {[%clk 0:02:58.5]} 12... Re8 {[%clk 0:02:36.9]}
13. N1h2 {[%clk 0:02:58.8]} 13... Nf8 {[%clk 0:02:31.9]} 14. h5 {[%clk
0:02:56.2]} 14... a5 {[%clk 0:02:30.3]} 15. Qd2 {[%clk 0:02:54]} 15... Nh7
{[%clk 0:02:29.3]} 16. Ng4 {[%clk 0:02:52.1]} 16... Bf8 {[%clk 0:02:24.8]} 17.
Bxh6 {[%clk 0:02:47.3]} 17... gxh6 {[%clk 0:02:25.7]} 18. Nxh6+ {[%clk
0:02:48.2]} 18... Bxh6 {[%clk 0:02:24.6]} 19. Qxh6 {[%clk 0:02:48.3]} 19... Qe7
{[%clk 0:02:23]} 20. c3 {[%clk 0:02:43.8]} 20... Ba6 {[%clk 0:02:20.1]} 21. Rad1
{[%clk 0:02:42.6]} 21... Qf8 {[%clk 0:02:18.7]} 22. Qf4 {[%clk 0:02:40.8]} 22...
Qg7 {[%clk 0:02:15.5]} 23. g4 {[%clk 0:02:37.9]} 23... Rf8 {[%clk 0:02:04.5]}
24. g5 {[%clk 0:02:33.3]} 24... Ne7 {[%clk 0:01:56.9]} 25. Bh3 {[%clk
0:02:31.6]} 25... Nf5 {[%clk 0:01:56.7]} 26. Bxf5 {[%clk 0:02:30.9]} 26... exf5
{[%clk 0:01:57.6]} 27. Qxf5 {[%clk 0:02:27.8]} 27... Bc8 {[%clk 0:01:55.4]} 28.
Qf4 {[%clk 0:02:27.2]} 28... Be6 {[%clk 0:01:51.2]} 29. Kh2 {[%clk 0:02:27.4]}
29... bxc3 {[%clk 0:01:46.8]} 30. bxc3 {[%clk 0:02:26.8]} 30... Rab8 {[%clk
0:01:47.4]} 31. Rg1 {[%clk 0:02:27.2]} 31... Rb2 {[%clk 0:01:45.9]} 32. Rg2
{[%clk 0:02:27.8]} 32... Rxa2 {[%clk 0:01:25.1]} 33. Nh4 {[%clk 0:02:15]} 33...
Kh8 {[%clk 0:01:19.1]} 34. Rdg1 {[%clk 0:02:12.6]} 34... Rg8 {[%clk 0:01:15]}
35. g6 {[%clk 0:02:08.2]} 35... Qf8 {[%clk 0:01:13.3]} 36. gxh7 {[%clk
0:02:06.9]} 36... Rxg2+ {[%clk 0:01:10.1]} 37. Rxg2 {[%clk 0:02:05.7]} 37...
Kxh7 {[%clk 0:01:10.7]} 38. Qf6 {[%clk 0:01:46.6]} 38... Qh6 {[%clk 0:00:55.7]}
39. Rg6 {[%clk 0:01:35.1]} 39... Rxf2+ {[%clk 0:00:42.3]} 40. Qxf2 {[%clk
0:01:36]} 40... fxg6 {[%clk 0:00:42.5]} 41. hxg6+ {[%clk 0:01:30.2]} 41... Kg8
{[%clk 0:00:41.7]} 42. Qf6 {[%clk 0:01:26.5]} 42... Qd2+ {[%clk 0:00:41.1]} 43.
Kg3 {[%clk 0:01:15.9]} 43... Qe1+ {[%clk 0:00:20.4]} 44. Kf4 {[%clk 0:01:08.2]}
44... Qd2+ {[%clk 0:00:20.4]} 45. Kg3 {[%clk 0:01:04.3]} 45... Qxd3+ {[%clk
0:00:16.4]} 46. Nf3 {[%clk 0:01:03.3]} 46... Qf5 {[%clk 0:00:16.6]} 47. Qd8+
{[%clk 0:00:58.5]} 47... Kg7 {[%clk 0:00:16.6]} 48. Qe7+ {[%clk 0:00:58.1]}
48... Kh6 {[%clk 0:00:14.1]} 49. Qh7# {[%clk 0:00:57.5]} 1-0

[Event "Late-Titled-Tuesday-Blitz-July-09-2024"]
[Site "Chess.com"]
[Date "2024.07.09"]
[Round "1"]
[White "TheoSlade"]
[Black "IlanSchnaider"]
[Result "0-1"]
[WhiteElo "2450"]
[BlackElo "2837"]
[TimeControl "180+1"]
[EndTime "14:07:01 PDT"]
[Termination "IlanSchnaider won by checkmate"]

1. d4 {[%clk 0:03:00.9]} 1... Nf6 {[%clk 0:02:58.3]} 2. c4 {[%clk 0:03:00.8]}
2... e6 {[%clk 0:02:58.1]} 3. g3 {[%clk 0:03:01.2]} 3... d5 {[%clk 0:02:55]} 4.
Bg2 {[%clk 0:03:01.6]} 4... Be7 {[%clk 0:02:50.7]} 5. Nf3 {[%clk 0:03:01.7]}
5... O-O {[%clk 0:02:50.2]} 6. O-O {[%clk 0:03:02.3]} 6... a5 {[%clk 0:02:48.9]}
7. Qc2 {[%clk 0:03:01.2]} 7... a4 {[%clk 0:02:48.3]} 8. Nbd2 {[%clk 0:03:00.2]}
8... Nc6 {[%clk 0:02:48]} 9. e4 {[%clk 0:02:55.6]} 9... dxe4 {[%clk 0:02:47.4]}
10. Nxe4 {[%clk 0:02:49.8]} 10... Nxd4 {[%clk 0:02:34.7]} 11. Nxd4 {[%clk
0:02:49.4]} 11... Qxd4 {[%clk 0:02:35.6]} 12. Rd1 {[%clk 0:02:46.7]} 12... Qe5
{[%clk 0:02:32.8]} 13. Bf4 {[%clk 0:02:45.5]} 13... Qa5 {[%clk 0:02:33.3]} 14.
Qd2 {[%clk 0:02:21.8]} 14... Nxe4 {[%clk 0:02:10.6]} 15. Bxe4 {[%clk 0:02:14.8]}
15... e5 {[%clk 0:02:07.1]} 16. Qxa5 {[%clk 0:02:07.1]} 16... Rxa5 {[%clk
0:02:08]} 17. Bd2 {[%clk 0:01:59.6]} 17... Ra7 {[%clk 0:02:04.7]} 18. Bc3 {[%clk
0:01:59]} 18... f6 {[%clk 0:01:44.2]} 19. Rd2 {[%clk 0:01:58.8]} 19... c6 {[%clk
0:01:41.6]} 20. Rad1 {[%clk 0:01:57.3]} 20... Be6 {[%clk 0:01:42.2]} 21. b3
{[%clk 0:01:54.9]} 21... axb3 {[%clk 0:01:42.5]} 22. axb3 {[%clk 0:01:55.8]}
22... Ra3 {[%clk 0:01:43]} 23. Bc2 {[%clk 0:01:52.1]} 23... Rfa8 {[%clk
0:01:06.4]} 24. f4 {[%clk 0:01:44.3]} 24... exf4 {[%clk 0:01:01]} 25. Re1 {[%clk
0:01:40.9]} 25... Kf7 {[%clk 0:00:52.6]} 26. gxf4 {[%clk 0:01:34.5]} 26... Bc5+
{[%clk 0:00:47.9]} 27. Bd4 {[%clk 0:01:27.2]} 27... Bb4 {[%clk 0:00:47.8]} 28.
Rde2 {[%clk 0:01:18.6]} 28... Bxe1 {[%clk 0:00:47.7]} 29. Rxe1 {[%clk
0:01:19.5]} 29... Ra2 {[%clk 0:00:44.7]} 30. Bxh7 {[%clk 0:01:17.4]} 30... Rh8
{[%clk 0:00:38.1]} 31. f5 {[%clk 0:00:56.5]} 31... Rxh7 {[%clk 0:00:31.9]} 32.
fxe6+ {[%clk 0:00:56.7]} 32... Ke8 {[%clk 0:00:32.5]} 33. Bf2 {[%clk 0:00:52.6]}
33... Rh5 {[%clk 0:00:28.7]} 34. Rd1 {[%clk 0:00:51.5]} 34... Re5 {[%clk
0:00:18.8]} 35. Rd7 {[%clk 0:00:49.3]} 35... Rxe6 {[%clk 0:00:17.2]} 36. Rxg7
{[%clk 0:00:39.9]} 36... Ree2 {[%clk 0:00:17.7]} 37. Rg2 {[%clk 0:00:11.7]}
37... Ra1+ {[%clk 0:00:17.5]} 38. Be1 {[%clk 0:00:12.3]} 38... Raxe1# {[%clk
0:00:18.4]} 0-1

[Event "Late-Titled-Tuesday-Blitz-July-09-2024"]
[Site "Chess.com"]
[Date "2024.07.09"]
[Round "1"]
[White "Gzucaritas"]
[Black "zverr1"]
[Result "1-0"]
[WhiteElo "2069"]
[BlackElo "2533"]
[TimeControl "180+1"]
[EndTime "14:07:01 PDT"]
[Termination "Gzucaritas won by checkmate"]

1. e4 {[%clk 0:02:58.4]} 1... c5 {[%clk 0:02:59.9]} 2. Nf3 {[%clk 0:02:58.1]}
2... Nc6 {[%clk 0:02:59.5]} 3. Bb5 {[%clk 0:02:57.8]} 3... h5 {[%clk 0:02:58.5]}
4. c3 {[%clk 0:02:51.9]} 4... h4 {[%clk 0:02:58.1]} 5. h3 {[%clk 0:02:50.4]}
5... a6 {[%clk 0:02:54.6]} 6. Bxc6 {[%clk 0:02:47.8]} 6... dxc6 {[%clk
0:02:55.5]} 7. d4 {[%clk 0:02:47.2]} 7... cxd4 {[%clk 0:02:54.6]} 8. cxd4 {[%clk
0:02:47.7]} 8... Nf6 {[%clk 0:02:54.6]} 9. Nc3 {[%clk 0:02:47.7]} 9... e6 {[%clk
0:02:49.4]} 10. O-O {[%clk 0:02:44.2]} 10... Be7 {[%clk 0:02:48.8]} 11. e5
{[%clk 0:02:44]} 11... Nd5 {[%clk 0:02:48.3]} 12. Ne4 {[%clk 0:02:43.7]} 12...
Bd7 {[%clk 0:02:28.5]} 13. a3 {[%clk 0:02:29]} 13... Rg8 {[%clk 0:02:21.3]} 14.
Neg5 {[%clk 0:02:19.8]} 14... f6 {[%clk 0:02:05.4]} 15. Ne4 {[%clk 0:02:11.9]}
15... g5 {[%clk 0:02:04.6]} 16. exf6 {[%clk 0:02:00.5]} 16... Bxf6 {[%clk
0:02:04.1]} 17. Ne5 {[%clk 0:02:01]} 17... Qe7 {[%clk 0:01:52.4]} 18. Qh5+
{[%clk 0:01:56.2]} 18... Kd8 {[%clk 0:01:43.6]} 19. Nxf6 {[%clk 0:01:45.5]}
19... Nxf6 {[%clk 0:01:32.8]} 20. Qf7 {[%clk 0:01:43.8]} 20... Rg7 {[%clk
0:00:44.3]} 21. Qxe7+ {[%clk 0:01:19]} 21... Kxe7 {[%clk 0:00:45.2]} 22. f3
{[%clk 0:01:10.5]} 22... Nd5 {[%clk 0:00:26.7]} 23. Bd2 {[%clk 0:01:06.5]} 23...
a5 {[%clk 0:00:26.4]} 24. Rae1 {[%clk 0:01:05.1]} 24... Kd6 {[%clk 0:00:24.2]}
25. Nc4+ {[%clk 0:00:58.3]} 25... Ke7 {[%clk 0:00:21]} 26. Re5 {[%clk
0:00:53.7]} 26... b5 {[%clk 0:00:17.4]} 27. Nxa5 {[%clk 0:00:49.3]} 27... Kf6
{[%clk 0:00:15.5]} 28. Rfe1 {[%clk 0:00:43.8]} 28... Nf4 {[%clk 0:00:10.4]} 29.
Bxf4 {[%clk 0:00:42.5]} 29... gxf4 {[%clk 0:00:11.3]} 30. Nb3 {[%clk 0:00:40.6]}
30... Rag8 {[%clk 0:00:10.3]} 31. R1e2 {[%clk 0:00:40]} 31... Re8 {[%clk
0:00:10.2]} 32. Nc5 {[%clk 0:00:39.1]} 32... Bc8 {[%clk 0:00:10.7]} 33. R2e4
{[%clk 0:00:36.6]} 33... Rg6 {[%clk 0:00:04.7]} 34. Rxf4+ {[%clk 0:00:36.2]}
34... Ke7 {[%clk 0:00:04.8]} 35. Rxh4 {[%clk 0:00:34.2]} 35... Kd6 {[%clk
0:00:04.7]} 36. Rh7 {[%clk 0:00:28.7]} 36... Reg8 {[%clk 0:00:03.8]} 37. Ne4#
{[%clk 0:00:28.5]} 1-0

[Event "Late-Titled-Tuesday-Blitz-July-09-2024"]
[Site "Chess.com"]
[Date "2024.07.09"]
[Round "1"]
[White "Bilan_Danila"]
[Black "simaopdias"]
[Result "1-0"]
[WhiteElo "2591"]
[BlackElo "2210"]
[TimeControl "180+1"]
[EndTime "14:07:07 PDT"]
[Termination "Bilan_Danila won by resignation"]

1. d4 {[%clk 0:02:21.4]} 1... Nf6 {[%clk 0:02:58.9]} 2. Nf3 {[%clk 0:02:21.5]}
2... e6 {[%clk 0:02:59.8]} 3. g3 {[%clk 0:02:21.3]} 3... b6 {[%clk 0:03:00.7]}
4. Bg2 {[%clk 0:02:22.2]} 4... Bb7 {[%clk 0:03:00.6]} 5. O-O {[%clk 0:02:23.1]}
5... Be7 {[%clk 0:03:00.4]} 6. c4 {[%clk 0:02:23.8]} 6... O-O {[%clk 0:02:59.7]}
7. d5 {[%clk 0:02:23.2]} 7... d6 {[%clk 0:02:59.4]} 8. Nc3 {[%clk 0:02:21.3]}
8... e5 {[%clk 0:02:59.7]} 9. Nh4 {[%clk 0:02:21.1]} 9... a6 {[%clk 0:02:59.3]}
10. Nf5 {[%clk 0:02:21.4]} 10... Bc8 {[%clk 0:02:58.8]} 11. Qc2 {[%clk
0:02:18.9]} 11... Bxf5 {[%clk 0:02:57.1]} 12. Qxf5 {[%clk 0:02:19.8]} 12... Qd7
{[%clk 0:02:57.8]} 13. Qd3 {[%clk 0:02:15]} 13... Qg4 {[%clk 0:02:56]} 14. h3
{[%clk 0:02:12.3]} 14... Qh5 {[%clk 0:02:55.7]} 15. e4 {[%clk 0:02:05.3]} 15...
Nbd7 {[%clk 0:02:54.2]} 16. Be3 {[%clk 0:01:51.8]} 16... h6 {[%clk 0:02:53.3]}
17. b4 {[%clk 0:01:48.4]} 17... Qg6 {[%clk 0:02:47.3]} 18. Kh2 {[%clk
0:01:46.9]} 18... a5 {[%clk 0:02:40.1]} 19. a3 {[%clk 0:01:45.7]} 19... Kh7
{[%clk 0:02:37.8]} 20. f4 {[%clk 0:01:38]} 20... exf4 {[%clk 0:02:34]} 21. gxf4
{[%clk 0:01:34.4]} 21... Nh5 {[%clk 0:02:31.2]} 22. Bd2 {[%clk 0:01:18.6]} 22...
Bh4 {[%clk 0:02:26.3]} 23. Ne2 {[%clk 0:01:12.4]} 23... Kh8 {[%clk 0:02:10.4]}
24. Qf3 {[%clk 0:00:57.5]} 24... Nhf6 {[%clk 0:01:54.6]} 25. Nd4 {[%clk
0:00:47.1]} 25... Qh5 {[%clk 0:01:49.1]} 26. Nf5 {[%clk 0:00:42.4]} 26... Qxf3
{[%clk 0:01:48.5]} 27. Bxf3 {[%clk 0:00:43.3]} 27... g5 {[%clk 0:01:44.4]} 28.
Nxh6 {[%clk 0:00:36.4]} 28... Nh7 {[%clk 0:01:32.3]} 29. Nf5 {[%clk 0:00:27.6]}
29... Rae8 {[%clk 0:01:27.2]} 30. Bc3+ {[%clk 0:00:26.4]} 30... Ndf6 {[%clk
0:01:24.2]} 31. e5 {[%clk 0:00:24.7]} 31... dxe5 {[%clk 0:01:21.3]} 32. fxe5
{[%clk 0:00:25.6]} 32... Ng8 {[%clk 0:01:12.9]} 33. Bg4 {[%clk 0:00:23.2]} 33...
f6 {[%clk 0:01:12.6]} 34. Nxh4 {[%clk 0:00:19.2]} 34... gxh4 {[%clk 0:01:12.3]}
35. Rae1 {[%clk 0:00:19.9]} 35... Ng5 {[%clk 0:01:12.3]} 36. exf6 {[%clk
0:00:18]} 36... Rxe1 {[%clk 0:01:12.7]} 37. Bxe1 {[%clk 0:00:18.4]} 37... Rxf6
{[%clk 0:01:09.5]} 38. Bc3 {[%clk 0:00:17.3]} 38... Kg7 {[%clk 0:01:08.4]} 39.
Bxf6+ {[%clk 0:00:16.8]} 39... Nxf6 {[%clk 0:01:09.3]} 40. Be6 {[%clk 0:00:14]}
40... Nfe4 {[%clk 0:01:05]} 41. Kg2 {[%clk 0:00:12.2]} 41... axb4 {[%clk
0:01:04.9]} 42. axb4 {[%clk 0:00:11.7]} 42... Nd2 {[%clk 0:01:03.9]} 43. Rf4
{[%clk 0:00:12]} 43... Kg6 {[%clk 0:00:56.9]} 44. c5 {[%clk 0:00:11.3]} 44...
bxc5 {[%clk 0:00:56.2]} 45. bxc5 {[%clk 0:00:12.2]} 45... Nde4 {[%clk
0:00:57.1]} 46. Bf5+ {[%clk 0:00:12.4]} 46... Kf6 {[%clk 0:00:57.4]} 47. Bxe4+
{[%clk 0:00:11.2]} 47... Ke5 {[%clk 0:00:58.3]} 48. Rxh4 {[%clk 0:00:10.9]}
48... Nxe4 {[%clk 0:00:58.5]} 49. Rxe4+ {[%clk 0:00:11.2]} 49... Kxe4 {[%clk
0:00:58.4]} 50. d6 {[%clk 0:00:12.1]} 1-0

[Event "Late-Titled-Tuesday-Blitz-July-09-2024"]
[Site "Chess.com"]
[Date "2024.07.09"]
[Round "1"]
[White "jbking07"]
[Black "BardArtem"]
[Result "0-1"]
[WhiteElo "2450"]
[BlackElo "2828"]
[TimeControl "180+1"]
[EndTime "14:07:10 PDT"]
[Termination "BardArtem won by checkmate"]

1. Nf3 {[%clk 0:03:00.9]} 1... d5 {[%clk 0:02:59.1]} 2. g3 {[%clk 0:03:00.6]}
2... Nf6 {[%clk 0:02:59.1]} 3. Bg2 {[%clk 0:03:00.1]} 3... Bf5 {[%clk
0:02:56.5]} 4. O-O {[%clk 0:02:59.6]} 4... e6 {[%clk 0:02:56.9]} 5. c4 {[%clk
0:02:59.2]} 5... c6 {[%clk 0:02:53.1]} 6. b3 {[%clk 0:02:57.8]} 6... h6 {[%clk
0:02:52.6]} 7. Bb2 {[%clk 0:02:57.5]} 7... Nbd7 {[%clk 0:02:52.9]} 8. Nc3 {[%clk
0:02:56.2]} 8... Be7 {[%clk 0:02:51.7]} 9. e3 {[%clk 0:02:53.9]} 9... O-O {[%clk
0:02:50.7]} 10. d4 {[%clk 0:02:53.6]} 10... Ne4 {[%clk 0:02:47.9]} 11. Nxe4
{[%clk 0:02:53]} 11... Bxe4 {[%clk 0:02:48.8]} 12. Nd2 {[%clk 0:02:49.3]} 12...
Bxg2 {[%clk 0:02:47.9]} 13. Kxg2 {[%clk 0:02:50.2]} 13... Nf6 {[%clk 0:02:46.1]}
14. Qf3 {[%clk 0:02:49.7]} 14... a5 {[%clk 0:02:43.6]} 15. Rfe1 {[%clk
0:02:44.3]} 15... Bb4 {[%clk 0:02:42.2]} 16. Red1 {[%clk 0:02:40.1]} 16... a4
{[%clk 0:02:41.1]} 17. Nf1 {[%clk 0:02:19.1]} 17... a3 {[%clk 0:02:19.2]} 18.
Bc1 {[%clk 0:02:18.3]} 18... Ne4 {[%clk 0:02:19.9]} 19. Nd2 {[%clk 0:02:00.7]}
19... f5 {[%clk 0:02:14.9]} 20. Nxe4 {[%clk 0:01:53.6]} 20... fxe4 {[%clk
0:02:15.8]} 21. Qe2 {[%clk 0:01:53.6]} 21... Qf6 {[%clk 0:02:02.1]} 22. Bd2
{[%clk 0:01:52.6]} 22... Bd6 {[%clk 0:01:59.5]} 23. Rf1 {[%clk 0:01:41]} 23...
Qg6 {[%clk 0:01:52.5]} 24. b4 {[%clk 0:01:18.9]} 24... Rf3 {[%clk 0:01:48.3]}
25. b5 {[%clk 0:01:16]} 25... Raf8 {[%clk 0:01:44.7]} 26. bxc6 {[%clk
0:01:15.4]} 26... bxc6 {[%clk 0:01:45.6]} 27. c5 {[%clk 0:01:14.8]} 27... Bc7
{[%clk 0:01:44.6]} 28. Rab1 {[%clk 0:01:14.5]} 28... h5 {[%clk 0:01:23.1]} 29.
Rb7 {[%clk 0:01:13]} 29... R8f7 {[%clk 0:01:18]} 30. Be1 {[%clk 0:00:56.9]}
30... h4 {[%clk 0:01:14.2]} 31. Rg1 {[%clk 0:00:40.3]} 31... Qh5 {[%clk
0:00:58.1]} 32. Qd2 {[%clk 0:00:39.7]} 32... Qf5 {[%clk 0:00:21.7]} 33. h3
{[%clk 0:00:34.7]} 33... hxg3 {[%clk 0:00:12.1]} 34. fxg3 {[%clk 0:00:35]} 34...
Ba5 {[%clk 0:00:06.1]} 35. Rb8+ {[%clk 0:00:32.6]} 35... Kh7 {[%clk 0:00:05.9]}
36. Qxa5 {[%clk 0:00:20.7]} 36... Rxe3 {[%clk 0:00:06.5]} 37. Qd2 {[%clk
0:00:19.9]} 37... Qf3+ {[%clk 0:00:05]} 38. Kh2 {[%clk 0:00:20.3]} 38... Re2+
{[%clk 0:00:05.6]} 39. Rg2 {[%clk 0:00:20.5]} 39... Qxg2# {[%clk 0:00:05.5]} 0-1

[Event "Late-Titled-Tuesday-Blitz-July-09-2024"]
[Site "Chess.com"]
[Date "2024.07.09"]
[Round "1"]
[White "ozates"]
[Black "leotobares"]
[Result "1-0"]
[WhiteElo "2622"]
[BlackElo "2285"]
[TimeControl "180+1"]
[EndTime "14:07:14 PDT"]
[Termination "ozates won by checkmate"]

1. e4 {[%clk 0:02:57.2]} 1... c5 {[%clk 0:02:58.2]} 2. Nf3 {[%clk 0:02:56.4]}
2... d6 {[%clk 0:02:58.1]} 3. d4 {[%clk 0:02:55.7]} 3... cxd4 {[%clk 0:02:58.1]}
4. Nxd4 {[%clk 0:02:56.6]} 4... Nf6 {[%clk 0:02:58]} 5. Nc3 {[%clk 0:02:57.3]}
5... g6 {[%clk 0:02:58]} 6. g3 {[%clk 0:02:56.1]} 6... Bg7 {[%clk 0:02:57.6]} 7.
Bg2 {[%clk 0:02:56.7]} 7... O-O {[%clk 0:02:57.2]} 8. O-O {[%clk 0:02:57.3]}
8... Bd7 {[%clk 0:02:55.2]} 9. a4 {[%clk 0:02:52.1]} 9... Nc6 {[%clk 0:02:54.7]}
10. Nb3 {[%clk 0:02:50]} 10... Rc8 {[%clk 0:02:52.6]} 11. Re1 {[%clk 0:02:48.9]}
11... Ne5 {[%clk 0:02:46.4]} 12. h3 {[%clk 0:02:40.8]} 12... Rxc3 {[%clk
0:02:37.6]} 13. bxc3 {[%clk 0:02:40.6]} 13... Qc8 {[%clk 0:02:38.5]} 14. Kh2
{[%clk 0:02:35.6]} 14... Qxc3 {[%clk 0:02:27]} 15. Be3 {[%clk 0:02:22.6]} 15...
Rc8 {[%clk 0:02:12.2]} 16. Ra2 {[%clk 0:02:06.6]} 16... Nc4 {[%clk 0:01:54.1]}
17. Bxa7 {[%clk 0:02:00.9]} 17... b6 {[%clk 0:01:49.5]} 18. a5 {[%clk
0:01:51.1]} 18... bxa5 {[%clk 0:01:44.9]} 19. Bd4 {[%clk 0:01:49.4]} 19... Qb4
{[%clk 0:01:42.2]} 20. c3 {[%clk 0:01:49.5]} 20... Qb8 {[%clk 0:01:36.3]} 21.
Nxa5 {[%clk 0:01:43.4]} 21... Nxa5 {[%clk 0:01:31.4]} 22. Rxa5 {[%clk
0:01:42.2]} 22... Bc6 {[%clk 0:01:17.8]} 23. e5 {[%clk 0:01:30.7]} 23... dxe5
{[%clk 0:01:14.1]} 24. Bxe5 {[%clk 0:01:31.4]} 24... Qb7 {[%clk 0:01:08.3]} 25.
Bxc6 {[%clk 0:01:25.4]} 25... Qxc6 {[%clk 0:01:08]} 26. Qe2 {[%clk 0:01:22.5]}
26... e6 {[%clk 0:01:02.3]} 27. Ra7 {[%clk 0:01:19.5]} 27... Nd5 {[%clk
0:00:59.3]} 28. Bxg7 {[%clk 0:01:19.2]} 28... Kxg7 {[%clk 0:00:58.8]} 29. Qe5+
{[%clk 0:01:19.7]} 29... Kg8 {[%clk 0:00:57.5]} 30. Rc1 {[%clk 0:00:46.5]} 30...
Qb6 {[%clk 0:00:56.8]} 31. Ra2 {[%clk 0:00:43.5]} 31... Qb3 {[%clk 0:00:53.4]}
32. Rac2 {[%clk 0:00:42.6]} 32... Rc4 {[%clk 0:00:48.1]} 33. h4 {[%clk
0:00:38.2]} 33... h5 {[%clk 0:00:44.2]} 34. Rd2 {[%clk 0:00:29.1]} 34... Qa4
{[%clk 0:00:41.7]} 35. Rb1 {[%clk 0:00:22.9]} 35... Qa7 {[%clk 0:00:27.3]} 36.
Rb8+ {[%clk 0:00:21]} 36... Kh7 {[%clk 0:00:08]} 37. Rh8# {[%clk 0:00:19.4]} 1-0